Cogmind - Beta 13 @@@ ROGUE MODE // 2024.04.10 @ 17:04:28 Player: MO-55 Result: Destroyed by H-66 Slayer with Gauss Rifle Performance ------------- Evolutions (4) 2000 Regions Visited (11) 2200 Robots Destroyed (106) 530 Value Destroyed (4119) 4119 Prototype IDs (14) 280 Alien Tech Used (0) 0 Bonus (339) 339 TOTAL SCORE: 9468 Bonus ------- Follower Combat Kills 339 Cogmind --------- Core Integrity 0/850 Matter 174/300 Energy 100/100 System Corruption 4% Temperature Cool (0) Movement Core (1350) Ox26 Location -6/Factory Parts ------- > --- POWER (1) -------- (None) > --- PROPULSION (5) --- (None) > --- UTILITY (6) ------ Huge Storage Unit Advanced Targeting Computer Melee Analysis Suite > --- WEAPON (3) ------- (None) > --- INVENTORY (25) --- Improved Cooling System Improved Signal Interpreter Melee Analysis Suite Melee Analysis Suite Improved Particle Charger Microactuators Microactuators Transmission Jammer Improved Light Armor Plating Improved Light Armor Plating Improved Light Armor Plating Authchip [Propulsion] Authchip [Propulsion] Authchip [Propulsion] Authchip [Device] Authchip [Processor] Authchip [Weapon] Mobile Refinery Mk. CCLXVII Hacking Drone Bay (1/1) Peak State ------------ > --- POWER ------------ Improved Deuterium Engine > --- PROPULSION ------- Light Armored Exoskeleton Cargo Legs > --- UTILITY ---------- High-capacity Storage Unit Improved Melee Analysis Suite Hardened Medium Armor Plating Hardened Heavy Armor Plating Improved Light Armor Plating > --- WEAPON ----------- Powered Hammer Makeshift Hammer Scythe > --- INVENTORY -------- Nuclear Core Micro Nuclear Core Improved Titanium Leg Light Armored Exoskeleton Armored Huge Wheel Trap Scanner Transmission Jammer Hardened Medium Armor Plating Hardened Heavy Armor Plating Hardened Heavy Armor Plating Improved Light Armor Plating Heavy Ion Cannon Heavy Missile Launcher Heavy Mace Heavy Mace Axe [Rating: 65] Favorites ----------- Power Improved Deuterium Engine Engine Improved Deuterium Engine Power Core Nuclear Core Propulsion Light Treads Treads Light Treads Leg Light Armored Exoskeleton Utility Melee Analysis Suite Device Cooling System Storage Huge Storage Unit Processor Melee Analysis Suite Protection Hardened Heavy Armor Plating Weapon Powered Hammer Energy Gun Subdweller Laser Energy Cannon Beam Cannon Ballistic Gun Assault Rifle Ballistic Cannon Advanced Assault Cannon Launcher Grenade Launcher Impact Weapon Powered Hammer Slashing Weapon Scythe Build | -11 -10 -10 -10 -8 -7 -7 -7 -7 -7 -6 -6 ------- Run | Yrd Mat Min Sub Mat Fac Was Fac Low Zio Pro Fac Slots Evolved 8 | . . . . 4 2 . . . . . 2 Power . | . . . . . . . . . . . . Propulsion 3 | . . . . 2 . . . . . . 1 Utility 4 | . . . . 2 1 . . . . . 1 Weapon 1 | . . . . . 1 . . . . . . Parts Attached 128 | 6 12 2 14 17 20 3 21 3 1 11 18 Power 16 | 1 2 . . 3 3 . 4 . . 1 2 Engine 12 | 1 2 . . 2 1 . 4 . . 1 1 Core 4 | . . . . 1 2 . . . . . 1 Reactor . | . . . . . . . . . . . . Propulsion 28 | 2 2 . 4 6 3 2 1 . . 5 3 Treads 13 | . 2 . 4 6 1 . . . . . . Leg 15 | 2 . . . . 2 2 1 . . 5 3 Wheel . | . . . . . . . . . . . . Hover . | . . . . . . . . . . . . Flight . | . . . . . . . . . . . . Utility 58 | 1 6 . 3 5 8 1 15 3 . 5 11 Device 9 | . . . . 2 1 . 2 . . 2 2 Storage 8 | 1 4 . . . . . 2 . . 1 . Processor 9 | . . . . . 1 . 3 2 . 1 2 Hackware . | . . . . . . . . . . . . Protection 32 | . 2 . 3 3 6 1 8 1 . 1 7 Artifact . | . . . . . . . . . . . . Weapon 26 | 2 2 2 7 3 6 . 1 . 1 . 2 Energy Gun 3 | 1 . . 2 . . . . . . . . Energy Cannon 1 | . . . 1 . . . . . . . . Ballistic Gun 5 | 1 1 1 1 . . . . . . . 1 Ballistic Cannon 3 | . . . 1 . . . 1 . . . 1 Launcher 3 | . . 1 1 . 1 . . . . . . Special Weapon . | . . . . . . . . . . . . Impact Weapon 6 | . . . 1 2 3 . . . . . . Slashing Weapon 5 | . 1 . . 1 2 . . . 1 . . Piercing Weapon . | . . . . . . . . . . . . Special Melee Weapon . | . . . . . . . . . . . . Unidentified Prototypes 3 | . . . . . 1 . 1 . . 1 . Parts Lost 42 | . . . 3 2 3 1 8 1 . 3 21 Power 5 | . . . . 1 . . 1 . . . 3 Propulsion 11 | . . . 2 1 . . . . . 2 6 Utility 21 | . . . 1 . 3 1 7 1 . . 8 Weapon 5 | . . . . . . . . . . 1 4 Highest Loss Streak 15 | . . . 1 1 2 1 2 2 . 2 15 To Critical Strikes 1 | . . . . . . . . . . . 1 Average Slot Usage (%) 84 | . 99 100 99 91 75 73 70 82 80 83 79 Engine 8 | . 14 14 14 8 2 6 6 7 7 7 5 Treads 12 | . 25 28 27 35 7 . . . . . . Leg 9 | . 2 . . . 9 20 13 14 14 15 25 Device 1 | . . . . 6 1 . 1 . . . 3 Storage 8 | . 14 14 14 9 6 3 6 7 7 6 6 Processor 11 | . . . . . 3 6 9 32 35 30 19 Protection 11 | . 13 14 14 13 18 20 16 . . . 6 Energy Gun 3 | . 14 14 13 . . . . . . . . Energy Cannon 1 | . . . 10 . . . . . . . . Ballistic Gun 1 | . 13 13 . . . . . . . . . Impact Weapon 7 | . . . . 15 17 9 6 7 7 7 2 Slashing Weapon 4 | . . . . 1 2 6 6 7 9 13 4 Naked Turns . | . . . . . . . . . . . . Heaviest Build 143 | 14 52 52 60 81 89 89 143 121 98 104 122 Greatest Support 95 | 20 40 40 40 82 85 95 85 85 85 85 93 Greatest Overweight (x) 2 | 1 1 1 1 . 1 . 1 1 1 1 2 Average Overweight (x) . | . . 1 1 . . . . 1 1 . 1 Largest Inventory Capacity 25 | 8 20 20 20 20 20 20 25 25 25 25 25 Average Capacity 22 | 6 17 20 20 20 20 12 24 25 25 23 25 Most Carried 25 | 4 18 19 20 20 20 20 21 16 25 24 24 Average Carried 17 | 3 13 18 18 19 18 11 13 14 20 19 19 Final Capacity 25 | 8 20 20 20 20 20 5 25 25 25 25 25 Final Carried 24 | 4 18 19 19 20 20 5 17 15 24 20 19 Class Distribution -------------------- 52% | Mutant 46% | Gladiator Dominant Class ---------------- Mutant | -10/Materials Mutant | -10/Mines Mutant | -10/Subcaves Mutant | -8/Materials Gladiator | -7/Factory Gladiator | -7/Waste Gladiator | -7/Factory Gladiator | -7/Lower Caves Gladiator | -7/Zion Gladiator | -6/Proximity Caves Mutant | -6/Factory Resources | -11 -10 -10 -10 -8 -7 -7 -7 -7 -7 -6 -6 ----------- Run | Yrd Mat Min Sub Mat Fac Was Fac Low Zio Pro Fac Matter Collected 1831 | 197 201 21 214 205 195 . 338 90 68 110 192 Remotely . | . . . . . . . . . . . . Salvage Created 4085 | . 254 21 123 998 770 . 1163 62 . 239 455 Parts 173 | . 20 5 9 25 45 . 34 3 . 4 28 Haulers Intercepted . | . . . . . . . . . . . . Recyclers Shooed 2 | . . . . 2 . . . . . . . Parts Field Recycled . | . . . . . . . . . . . . Retrieved Matter . | . . . . . . . . . . . . Parts Self-Destructed 31 | . . . 14 . . . . 3 . 14 . Prevented 2 | . . . . . . . . . . 2 . Kills | -11 -10 -10 -10 -8 -7 -7 -7 -7 -7 -6 -6 ------- Run | Yrd Mat Min Sub Mat Fac Was Fac Low Zio Pro Fac Combat Hostiles Destroyed 94 | . 10 3 6 20 16 . 22 1 . 4 12 Melee 44 | . . . . 11 12 . 13 1 . 3 4 Guns 13 | . 10 . 3 . . . . . . . . Cannons 8 | . . . . 1 1 . . . . . 6 AOE 7 | . . 3 3 . . . 1 . . . . Classes Destroyed 13 | . 2 . 1 3 3 . 3 . . 1 . Worker 2 | . . . . . . . 1 . . . 1 Builder 1 | . . . . . . . 1 . . . . Recycler 4 | . . . . 2 . . 2 . . . . Mechanic 1 | . . . . . . . . . . 1 . Operator 1 | . . . . 1 . . . . . . . Watcher 3 | . . . . . 2 . . . . . 1 Swarmer 28 | . 6 3 3 3 3 . 4 . . . 6 Grunt 35 | . 4 . . 13 4 . 9 . . 4 1 Duelist 1 | . . . . . . . 1 . . . . Sentry 13 | . . . . 4 3 . 3 1 . . 2 Hunter 3 | . . . . . 3 . . . . . . Programmer 11 | . . . . . 3 . 5 . . . 3 Subdweller 3 | . . . 3 . . . . . . . . Best Kill Streak 5 | . 5 3 3 3 4 . 4 1 . 5 4 Combat Bots Only 5 | . 5 3 3 3 4 . 3 1 . 4 4 Max Kills in Single Turn 3 | . 1 3 1 1 1 . 1 1 . 1 1 Gunslinging . | . . . . . . . . . . . . Exploded 3 | . . 3 1 . . . 1 . . . . Melee 1 | . . . . 1 1 . 1 1 . 1 1 Uniques/NPCs Destroyed . | . . . . . . . . . . . . Combat | -11 -10 -10 -10 -8 -7 -7 -7 -7 -7 -6 -6 -------- Run | Yrd Mat Min Sub Mat Fac Was Fac Low Zio Pro Fac Hostile Shots Fired 1230 | . 42 6 36 135 197 3 250 67 . 100 394 Missed 331 | . 11 2 10 44 58 . 66 21 . 25 94 Damage Taken 12500 | . 303 42 756 1393 1660 143 2552 377 . 1562 3712 Core 1812 | . 69 8 139 122 153 . 125 26 . 305 865 Absorbed by Shields 402 | . . . . . 8 . . . . . 394 Redirected to Shielding 196 | . 5 . . . 191 . . . . . . Ignored by Resistances 38 | . . . . . . . . 38 . . . Regen/Repaired (Parts) 240 | . . . . . 85 . . . 155 . . Core Remaining (%) 50 | 100 . . 13 77 . . . . . 13 . Volleys Fired 113 | . 16 2 46 5 . . 13 . . . 31 Largest 2 | . 2 1 2 1 . . 1 . . . 2 Hottest 120 | . 70 30 120 48 . . 48 . . . 76 Shots Fired 157 | . 32 2 63 5 . . 13 1 . . 41 Gun 98 | . 32 . 47 . . . . . . . 19 Cannon 54 | . . . 13 5 . . 13 1 . . 22 Launcher 5 | . . 2 3 . . . . . . . . Special . | . . . . . . . . . . . . Kinetic 81 | . 16 . 5 5 . . 13 1 . . 41 Thermal 71 | . 16 . 55 . . . . . . . . Explosive 5 | . . 2 3 . . . . . . . . Electromagnetic . | . . . . . . . . . . . . Robot Hit Streak 24 | . 8 . 24 1 . . 2 . . . 18 Robot Miss Streak 2 | . 2 . 1 2 . . . . . . 2 Penetration Max 1 | . . . . . . . . . . . 1 Secondary Targets . | . . . . . . . . . . . . Shots Hit Robots 339 | . 21 . 35 68 48 . 74 6 . 24 63 Core Hits 92 | . 15 3 8 12 14 . 15 1 . 3 21 Critical Kills 4 | . . . . . . . 2 . . 1 1 Critical Parts Destroyed 31 | . . . . 8 4 . 16 1 . 2 . Critical Strikes 53 | . . . 1 8 8 . 23 1 . 5 7 Destroy 1 | . . . 1 . . . . . . . . Blast 2 | . . . . . . . . . . . 2 Smash 36 | . . . . 8 4 . 19 1 . 3 1 Sever 14 | . . . . . 4 . 4 . . 2 4 Melee Attacks 397 | . 2 . 1 99 99 . 112 7 2 28 47 Impact 292 | . . . 1 72 70 . 95 6 2 23 23 Slashing 105 | . 2 . . 27 29 . 17 1 . 5 24 Piercing . | . . . . . . . . . . . . Sneak Attacks 14 | . . . . 6 1 . 5 . . 2 . Combat Hostiles 3 | . . . . 2 1 . . . . . . Follow-up Attacks 43 | . . . . 16 11 . 11 . . 5 . Damage Inflicted 13089 | . 246 133 825 2969 2077 . 3254 300 . 1108 2177 Guns 1127 | . 246 . 387 . . . . . . . 494 Cannons 751 | . . . 176 65 . . 25 . . . 485 Explosions 395 | . . 133 262 . . . . . . . . Melee 10790 | . . . . 2904 2077 . 3229 300 . 1108 1172 Ramming 26 | . . . . . . . . . . . 26 Kinetic 1235 | . 86 . 80 65 . . 25 . . . 979 Thermal 643 | . 160 . 483 . . . . . . . . Explosive 395 | . . 133 262 . . . . . . . . Electromagnetic . | . . . . . . . . . . . . Impact 8334 | . . . . 2418 1256 . 2891 300 . 910 559 Slashing 2456 | . . . . 486 821 . 338 . . 198 613 Piercing . | . . . . . . . . . . . . Highest Corruption 11 | . . . . . 1 1 11 7 7 . 4 Average Corruption 4 | . . . . . 1 1 4 6 7 . 2 Corruption Purged 5 | . . . . . . . 5 . . . . Corruption Blocked . | . . . . . . . . . . . . Effects 105 | . . . . . 1 . 74 16 2 . 12 Message Errors 27 | . . . . . . . 21 4 . . 2 Matter Fused 26 | . . . . . . . 18 3 1 . 4 Heat Flow Errors 10 | . . . . . . . 6 1 . . 3 Energy Discharges 14 | . . . . . . . 8 4 . . 2 Parts Fused 2 | . . . . . . . 2 . . . . Data Loss (minor) 12 | . . . . . 1 . 9 2 . . . Data Loss (major) 5 | . . . . . . . 3 1 . . 1 Misfires 2 | . . . . . . . 1 1 . . . Alerts 6 | . . . . . . . 5 . 1 . . Weapon Failures 1 | . . . . . . . 1 . . . . Overload Shots . | . . . . . . . . . . . . Overflow Damage 2816 | . . . 12 719 405 . 1234 87 . 248 111 Projectiles 28 | . . . . 2 . . . . . . 26 Explosions 12 | . . . 12 . . . . . . . . Melee 2776 | . . . . 717 405 . 1234 87 . 248 85 Knockbacks 36 | . . . . 13 5 . 10 2 . 1 5 Impact 28 | . . . . 10 4 . 10 2 . 1 1 Kinetic 4 | . . . . 1 . . . . . . 3 Secondary 4 | . . . . 2 1 . . . . . 1 Self-Inflicted Damage 8 | . . 8 . . . . . . . . . Shots 1 | . . 1 . . . . . . . . . Rammed 1 | . . . . . . . . . . . 1 Targets Rammed 2 | . . . . . . . . . . . 2 Kicked 1 | . . . . . . . . . . . 1 Crushed . | . . . . . . . . . . . . Highest Temperature 331 | . 102 . 153 8 10 . 331 242 . 18 196 Average Temperature 102 | . 32 . 50 2 4 . 146 115 . 16 58 Received Heat Transfer 2560 | . 81 . 96 675 225 . 525 78 . 526 354 Effects 4 | . . . . . . . 4 . . . . Shutdowns 1 | . . . . . . . 1 . . . . Energy Bleed 2 | . . . . . . . 2 . . . . Interference 1 | . . . . . . . 1 . . . . Siege Activations . | . . . . . . . . . . . . Robots Corrupted . | . . . . . . . . . . . . Combat Hostiles . | . . . . . . . . . . . . Parts Fried 41 | . . . . 13 5 . 17 . . 3 3 Impact Corruptions 109 | . . . . 31 19 . 39 5 . 10 5 Robots Melted . | . . . . . . . . . . . . Combat Hostiles . | . . . . . . . . . . . . Parts Melted 3 | . 1 . . . . . . . . 2 . Heat Transferred 1226 | . 481 . 745 . . . . . . . . Parts Sabotaged . | . . . . . . . . . . . . Parts Stolen . | . . . . . . . . . . . . Parts Stripped . | . . . . . . . . . . . . Power Chain Reactions 3 | . . . . . . . 3 . . . . Alert | -11 -10 -10 -10 -8 -7 -7 -7 -7 -7 -6 -6 ------- Run | Yrd Mat Min Sub Mat Fac Was Fac Low Zio Pro Fac Peak Influence 352 | . 137 127 . 312 351 137 352 . . . 338 Initial 300 | . . 17 . . 118 122 88 . . . 300 Average 115 | . 37 107 . 170 91 125 90 . . . 232 Maximum Alert Level 1 | . . . . 1 1 . 1 . . . 1 Low Security (%) 78 | 100 100 100 . 57 93 100 80 . . . 48 Level 1 21 | . . . . 42 6 . 19 . . . 51 Level 2 . | . . . . . . . . . . . . Level 3 . | . . . . . . . . . . . . Level 4 . | . . . . . . . . . . . . Level 5 . | . . . . . . . . . . . . High Security . | . . . . . . . . . . . . Max Security . | . . . . . . . . . . . . Squads Dispatched 39 | . 1 . . 3 10 . 17 . . 1 7 Investigation 6 | . . . . 2 3 . 1 . . . . Extermination 13 | . . . . . 4 . 7 . . . 2 Reinforcement 7 | . 1 . . 1 1 . 2 . . . 2 Assault 2 | . . . . . 1 . . . . 1 . Garrison 11 | . . . . . 1 . 7 . . . 3 Intercept . | . . . . . . . . . . . . Searches Triggered . | . . . . . . . . . . . . Construction Impeded 1 | . . . . . . . . . . . 1 Haulers Reinforced 1 | . . . . . . . 1 . . . . Active Scanning Responses . | . . . . . . . . . . . . Cargo Convoy Interrupts 1 | . . . . . . . . . . . 1 Stealth | -11 -10 -10 -10 -8 -7 -7 -7 -7 -7 -6 -6 --------- Run | Yrd Mat Min Sub Mat Fac Was Fac Low Zio Pro Fac Distress Signals 2 | . . . . . 1 . . . . 1 . Communications Jammed . | . . . . . . . . . . . . Distress Signals . | . . . . . . . . . . . . Times Spotted 187 | . 16 3 6 42 23 6 39 2 . 14 36 Peak Tracking Total 13 | . 3 3 3 6 4 6 5 2 . 6 13 Tactical Retreats 16 | . . . . 6 1 . 5 . . 3 1 Traps | -11 -10 -10 -10 -8 -7 -7 -7 -7 -7 -6 -6 ------- Run | Yrd Mat Min Sub Mat Fac Was Fac Low Zio Pro Fac Traps Triggered 11 | . . . 6 . 2 . 2 . . . 1 Indirectly . | . . . . . . . . . . . . Trap Hack Attempts . | . . . . . . . . . . . . Triggered . | . . . . . . . . . . . . Disarmed . | . . . . . . . . . . . . Reprogrammed . | . . . . . . . . . . . . Reused . | . . . . . . . . . . . . Traps Extracted . | . . . . . . . . . . . . Installed . | . . . . . . . . . . . . Triggered 2 | . . . . . . . 2 . . . . Machines | -11 -10 -10 -10 -8 -7 -7 -7 -7 -7 -6 -6 ---------- Run | Yrd Mat Min Sub Mat Fac Was Fac Low Zio Pro Fac Machines Disabled 8 | . . 2 1 2 1 . . . . . 2 Max in Single Turn 2 | . . 1 1 2 1 . . . . . 1 Garrison Access 1 | . . . . . 1 . . . . . . Machines Repaired . | . . . . . . . . . . . . Machines Dismantled . | . . . . . . . . . . . . Machines Sabotaged . | . . . . . . . . . . . . Overloaded Fab Kills 1 | . . . . . . . 1 . . . . Hacking | -11 -10 -10 -10 -8 -7 -7 -7 -7 -7 -6 -6 --------- Run | Yrd Mat Min Sub Mat Fac Was Fac Low Zio Pro Fac Machines Accessed 45 | . 5 . 1 9 13 . 15 . . . 2 Terminals 26 | . 5 . . 6 4 . 10 . . . 1 Fabricators 6 | . . . . . 3 . 3 . . . . Repair Stations 4 | . . . . . 3 . 1 . . . . Recycling Units 1 | . . . . . 1 . . . . . . Scanalyzers 4 | . . . . 2 1 . 1 . . . . Garrison Access 3 | . . . . 1 1 . . . . . 1 Total Hacks 113 | . 11 . 1 37 31 . 29 . . . 4 Successful 47 | . 5 . 1 16 16 . 8 . . . 1 Failed 65 | . 5 . . 21 15 . 21 . . . 3 Catastrophic 16 | . 3 . . 2 5 . 5 . . . 1 Database Lockouts 1 | . 1 . . . . . . . . . . Manual 46 | . 9 . . 17 7 . 10 . . . 3 Terminals 63 | . 11 . . 18 10 . 21 . . . 3 Fabricators 11 | . . . . . 7 . 4 . . . . Repair Stations 9 | . . . . . 6 . 3 . . . . Recycling Units 2 | . . . . . 2 . . . . . . Scanalyzers 20 | . . . . 15 4 . 1 . . . . Garrison Access 7 | . . . . 4 2 . . . . . 1 Terminal Hacks 16 | . 4 . 1 3 4 . 4 . . . . Part Schematic 3 | . 2 . . . 1 . . . . . . Robot Analysis 1 | . . . . 1 . . . . . . . Level Access Points 1 | . . . . 1 . . . . . . . Branch Access Points 1 | . . . . . . . 1 . . . . Terminal Index 1 | . . . . . . . 1 . . . . Unreport Threat 3 | . . . . . 2 . 1 . . . . Locate Traps 2 | . . . . 1 1 . . . . . . Recall Extermination 1 | . . . . . . . 1 . . . . Hauler Manifests 1 | . 1 . . . . . . . . . . Zone Layout 1 | . 1 . . . . . . . . . . Derelict Proto ID Bank 1 | . . . 1 . . . . . . . . Fabricator Hacks 5 | . . . . . 5 . . . . . . Load Schematic 3 | . . . . . 3 . . . . . . Build 2 | . . . . . 2 . . . . . . Repair Station Hacks 4 | . . . . . 3 . 1 . . . . Scan Component 3 | . . . . . 2 . 1 . . . . Repair 1 | . . . . . 1 . . . . . . Recycling Unit Hacks . | . . . . . . . . . . . . Scanalyzer 13 | . . . . 12 1 . . . . . . Insert Component 8 | . . . . 7 1 . . . . . . Analyze 5 | . . . . 5 . . . . . . . Garrison Access Hacks . | . . . . . . . . . . . . Unauthorized Hacks 9 | . 1 . . 1 3 . 3 . . . 1 Terminals 6 | . 1 . . 1 1 . 2 . . . 1 Botnet 6 | . 1 . . 1 1 . 2 . . . 1 Fabricators 1 | . . . . . . . 1 . . . . Overload 1 | . . . . . . . 1 . . . . Repair Stations . | . . . . . . . . . . . . Recycling Units 2 | . . . . . 2 . . . . . . Reject 1 | . . . . . 1 . . . . . . Mask 1 | . . . . . 1 . . . . . . Scanalyzers . | . . . . . . . . . . . . Garrison Access . | . . . . . . . . . . . . Data Cores Recovered 1 | . . . . 1 . . . . . . . Used . | . . . . . . . . . . . . Hacking Detections 39 | . 4 . . 8 11 . 14 . . . 2 Full Trace Events 4 | . . . . 1 3 . . . . . . Feedback Events . | . . . . . . . . . . . . Feedback Blocked . | . . . . . . . . . . . . Robot Schematics Acquired 3 | . . . . . . . . . 3 . . Robots Built . | . . . . . . . . . . . . Authchips . | . . . . . . . . . . . . Time . | . . . . . . . . . . . . Total Robot Build Rating . | . . . . . . . . . . . . Part Schematics Acquired 23 | . 2 . . 5 1 . . . 15 . . Parts Built 2 | . . . . . 2 . . . . . . Authchips . | . . . . . . . . . . . . Time 168 | . . . . . 168 . . . . . . Total Part Build Rating 8 | . . . . . 8 . . . . . . Parts Repaired 1 | . . . . . 1 . . . . . . Time 38 | . . . . . 38 . . . . . . Parts Recycled . | . . . . . . . . . . . . Recycled Matter . | . . . . . . . . . . . . Retrieved Matter . | . . . . . . . . . . . . Retrieved Components . | . . . . . . . . . . . . Parts Scanalyzed 6 | . . . . 5 1 . . . . . . Part Schematics Acquired 5 | . . . . 5 . . . . . . . Parts Damaged 1 | . . . . . 1 . . . . . . Bothacking | -11 -10 -10 -10 -8 -7 -7 -7 -7 -7 -6 -6 ------------ Run | Yrd Mat Min Sub Mat Fac Was Fac Low Zio Pro Fac Used RIF Installer . | . . . . . . . . . . . . Robots Hacked . | . . . . . . . . . . . . Non-combat . | . . . . . . . . . . . . Combat . | . . . . . . . . . . . . Robot Hacks Applied . | . . . . . . . . . . . . Relay Couplers Released . | . . . . . . . . . . . . Fabnet Peak Effective % . | . . . . . . . . . . . . Robots Rewired . | . . . . . . . . . . . . Allies Hacked . | . . . . . . . . . . . . Hacks Repelled . | . . . . . . . . . . . . Allies | -11 -10 -10 -10 -8 -7 -7 -7 -7 -7 -6 -6 -------- Run | Yrd Mat Min Sub Mat Fac Was Fac Low Zio Pro Fac Total Allies 8 | . . . . . . . . . 8 . . Largest Group 8 | . . . . . . . . . 8 8 . Highest-Rated Group 219 | . . . . . . . . . 219 219 . Highest-Rated Ally 39 | . . . . . . . . . 39 39 . Total Orders . | . . . . . . . . . . . . Ally Attacks 78 | . . . . . . . . . . 78 . Total Damage 916 | . . . . . . . . . . 916 . Kills 11 | . . . . . . . . . . 11 . Allies Corrupted . | . . . . . . . . . . . . Allies Melted . | . . . . . . . . . . . . Intel | -11 -10 -10 -10 -8 -7 -7 -7 -7 -7 -6 -6 ------- Run | Yrd Mat Min Sub Mat Fac Was Fac Low Zio Pro Fac Robot Analysis Total 1 | . . . . 1 . . . . . . . Derelict Logs Recovered 6 | . . . 1 . . . . 1 3 1 . Drone Launches . | . . . . . . . . . . . . Drone Recoveries . | . . . . . . . . . . . . Exploration | -11 -10 -10 -10 -8 -7 -7 -7 -7 -7 -6 -6 ------------- Run | Yrd Mat Min Sub Mat Fac Was Fac Low Zio Pro Fac Turns Passed 19233 | 56 1512 468 3091 2105 2210 99 3782 503 2780 1256 1371 Spaces Moved 7940 | 42 681 141 1186 970 1000 72 1464 215 1179 477 513 Core 12 | 12 . . . . . . . . . . . Treads 3122 | . 587 141 1186 970 238 . . . . . . Legs 4806 | 30 94 . . . 762 72 1464 215 1179 477 513 Wheels . | . . . . . . . . . . . . Hover . | . . . . . . . . . . . . Flight . | . . . . . . . . . . . . Fastest Speed 50 | 50 120 240 240 156 135 130 135 225 225 140 196 Average Speed 208 | 104 203 240 240 158 172 130 221 225 225 237 211 Slowest Speed 266 | 120 240 240 240 160 241 130 225 225 225 250 266 Overloaded Moves . | . . . . . . . . . . . . Propulsion Burnouts . | . . . . . . . . . . . . Robots Hopped . | . . . . . . . . . . . . Cave-ins Triggered . | . . . . . . . . . . . . Exploration Rate (%) 50 | 3 97 38 68 65 27 70 34 38 84 61 16 Regions Visited 11 Branch Regions 5 Pre-discovered Areas . | . . . . . . . . . . . . Known Exits Taken 2 | . . . . 1 . . 1 . . . . Unknown Exits Taken 7 | 1 1 1 1 . . . . 1 1 1 . Scrap Searched 8 | . . . 3 . . . . . 5 . . Spaces Dug 72 | . 1 . 2 4 16 . 36 . . . 13 Terrain Destroyed 127 | . 1 10 8 42 16 . 36 . . . 14 Melee 62 | . 1 . 1 4 16 . 27 . . . 13 Projectile 13 | . . . 1 2 . . 9 . . . 1 AOE 52 | . . 10 6 36 . . . . . . . Terrain Rammed . | . . . . . . . . . . . . Walls Destroyed . | . . . . . . . . . . . . Machines Disabled . | . . . . . . . . . . . . Actions | -11 -10 -10 -10 -8 -7 -7 -7 -7 -7 -6 -6 --------- Run | Yrd Mat Min Sub Mat Fac Was Fac Low Zio Pro Fac Total 9875 | 51 770 269 1358 1401 1368 79 1813 225 1305 562 674 Wait 1151 | . 38 124 101 293 227 . 190 1 108 22 47 Move 7930 | 41 680 140 1185 969 1000 71 1463 214 1178 476 513 Hop . | . . . . . . . . . . . . Pick Up 139 | 4 15 1 4 17 27 2 21 . 12 22 14 Fast Attach 37 | 6 5 . 4 4 2 . 8 . 1 4 3 Attach 53 | . . . 4 5 10 3 9 3 . 6 13 Detach 5 | . . . . . . 1 2 1 . . 1 Swap 38 | . 7 2 6 8 8 . 4 . . 1 2 Drop 82 | . 7 . 7 20 23 2 7 . 4 8 4 Fire 113 | . 16 2 46 5 . . 13 . . . 31 Melee 324 | . 2 . 1 80 71 . 95 6 2 23 44 Ram 1 | . . . . . . . . . . . 1 Kick 1 | . . . . . . . . . . . 1 Crush . | . . . . . . . . . . . . Escape Stasis 1 | . . . . . . . 1 . . . . Rewire . | . . . . . . . . . . . . Trap . | . . . . . . . . . . . . Miscellaneous . | . . . . . . . . . . . . Route ------- -11/Scrapyard -10/Materials (discovered 5 exits: [*Mat x3] / [*Min x2]) -10/Mines (discovered 2 exits: [*Mat] / *Sub) -10/Subcaves -8/Materials (discovered 3 exits: *Fac x3) -7/Factory -7/Waste -7/Factory (discovered 4 exits: *Sto x2 / *Low x2) -7/Lower Caves -7/Zion -6/Proximity Caves -6/Factory (discovered 1 exit: Low) History --------- Turn | Location | Event 8 | -11/Scrapyard | Discovered new exit (range 15) 57 | -11/Scrapyard | Entered Materials 158 | -10/Materials | Discovered new exit (range 16) 305 | -10/Materials | Build established: Mutant 437 | -10/Materials | Discovered new exit (range 5) 933 | -10/Materials | Discovered new exit (range 16) 1008 | -10/Materials | Discovered new exit (range 16) 1062 | -10/Materials | Central database locked down 1355 | -10/Materials | Discovered new exit (range 5) 1569 | -10/Materials | Entered Mines 1659 | -10/Mines | Assembled infested the area 1664 | -10/Mines | Assisted by a Guerilla fighting off Assembled 1787 | -10/Mines | Received a Rocket Launcher from a helpful Derelict 1808 | -10/Mines | Discovered new exit (range 12) 2033 | -10/Mines | Discovered new exit (range 3) 2037 | -10/Mines | Entered Subcaves 2240 | -10/Subcaves | A swath of the cavern ceiling suddenly collapsed 2742 | -10/Subcaves | A swath of the cavern ceiling suddenly collapsed 3260 | -10/Subcaves | Core integrity fell below 50% 4392 | -10/Subcaves | Core integrity fell below 20% 4645 | -10/Subcaves | Visited 4L-MR0's lab 4682 | -10/Subcaves | Found Cargo Legs 5002 | -10/Subcaves | Shifting Twisted Machinery released Spk. Treads 5116 | -10/Subcaves | Discovered new exit (range 6) 5128 | -10/Subcaves | Entered Materials 5128 | -8/Materials | Evolved 4 slots: Propulsion x2, Utility x2 5623 | -8/Materials | Discovered new exit (range 5) 6870 | -8/Materials | Identified exit to Factory 7233 | -8/Materials | Entered Factory 7233 | -7/Factory | Evolved 2 slots: Utility x1, Weapon x1 7234 | -7/Factory | Identified exit to Storage 7721 | -7/Factory | Fabricated Lgt. Armored Exoskeleton (x1) 7807 | -7/Factory | Attached Cargo Legs, gained temporary slots: Utility x2 8576 | -7/Factory | Build established: Gladiator 9082 | -7/Factory | Repaired Imp. Propulsion Shielding 9212 | -7/Factory | Fabricated Lgt. Armored Exoskeleton (x1) 9443 | -7/Factory | Sucked down chute 9443 | -7/Factory | Entered Waste 9457 | -7/Waste | Spotted C-40 Crusher 9467 | -7/Waste | Spotted C-40 Crusher 9475 | -7/Waste | Spotted C-40 Crusher 9480 | -7/Waste | Spotted C-40 Crusher 9484 | -7/Waste | Spotted C-40 Crusher 9491 | -7/Waste | Crushed by Compactor (0 parts destroyed, 1 dropped) 9495 | -7/Waste | Crushed by Compactor (1 part destroyed) 9496 | -7/Waste | Spotted C-40 Crusher 9530 | -7/Waste | Discovered new exit (range 10) 9542 | -7/Waste | Entered Factory 10227 | -7/Factory | Garrison activated, responded to threat 10321 | -7/Factory | Build established: Mutant 10652 | -7/Factory | Identified exit to Lower Caves 11522 | -7/Factory | Garrison activated, responded to threat 11572 | -7/Factory | Build established: Gladiator 12149 | -7/Factory | System corruption reached 10% 13312 | -7/Factory | Garrison activated, responded to threat 13324 | -7/Factory | Entered Lower Caves 13326 | -7/Lower Caves | Attracted the attention of an 0b10 checkpoint 13418 | -7/Lower Caves | Encountered a Warlord checkpoint 13596 | -7/Lower Caves | Learned Factory stockpile data 13825 | -7/Lower Caves | A Derelict revealed a hidden shortcut to a safe place 13827 | -7/Lower Caves | Entered Zion 13915 | -7/Zion | System corruption cleaned by Quarantine Array 14137 | -7/Zion | Given the Hacking Drone Bay 14137 | -7/Zion | Found Prototype Device 14142 | -7/Zion | Discovered new exit (range 8) 15304 | -7/Zion | Learned Factory security intel 15423 | -7/Zion | Gained Derelict followers 15563 | -7/Zion | Gained Derelict followers 16471 | -7/Zion | Found Prototype Device 16607 | -7/Zion | Entered Proximity Caves 16607 | -6/Proximity Caves | Accompanied by 8 allies 16612 | -6/Proximity Caves | Spotter reported a threat 16665 | -6/Proximity Caves | Spotter reported a threat 16667 | -6/Proximity Caves | Attracted the attention of an 0b10 outpost 16682 | -6/Proximity Caves | Core integrity fell below 50% 16739 | -6/Proximity Caves | Identified Hacking Drone Bay 16919 | -6/Proximity Caves | Lost 3 allies 17721 | -6/Proximity Caves | Core integrity fell below 20% 17841 | -6/Proximity Caves | Learned Factory terminal intel 17852 | -6/Proximity Caves | Discovered new exit (range 6) 17863 | -6/Proximity Caves | Entered Factory 17863 | -6/Factory | Evolved 2 slots: Propulsion x1, Utility x1 17864 | -6/Factory | Identified exit to Lower Caves 17867 | -6/Factory | Loaded intel: 26 terminal locations 18411 | -6/Factory | Garrison activated, responded to threat 18795 | -6/Factory | Build established: Mutant 19030 | -6/Factory | Lost 3 parts (1n1u1w) 19189 | -6/Factory | Cargo convoy interrupted 19228 | -6/Factory | Core integrity fell below 50% 19234 | -6/Factory | Core integrity fell below 20% 19234 | -6/Factory | Destroyed by H-66 Slayer with Gauss Rifle Last Messages --------------- 19219_ Penetrated by Slug. 19219_ Imp. Carbon-fiber Leg destroyed. 19219_ K-01 Serf collects debris. 19220_ R-10 Processor collects Wheel. 19220_ Penetrated by Slug. 19220_ Gauss Rifle destroyed. 19221_ Imp. Light Armor Plating destroyed. 19221_ Slammed into X-72 Disruptor. 19222_ Acquired 36 matter. 19222_ K-01 Serf collects debris. 19223_ Penetrated by Slug. 19224_ Imp. Light Armor Plating destroyed. 19225_ Penetrated by Slug. 19225_ K-01 Serf collects debris. 19226_ System corrupted: Energy discharge (-24). 19227_ Penetrated by Slug. 19228_ Slug penetrates X-72 Disruptor. 19230_ Penetrated by Slug. 19234_ Adv. Melee Analysis Suite destroyed. 19234_ Penetrated by Slug. Map ----- +----------------------------------------------------+ | ??????????????????????????????????????""?????????? | | ??????????????????????????????????????T"?????????? | | ?????????????????????????????????????????????????? | | ?????????????????????????????????????????????????? | | ?????????????????????????????????????????????????? | | ?????????????????????????????????????????????????? | | ?????????????????????????????????????????????????? | | ?????????????????????????????????????????????????? | | ?????????????????????????????????????????????????? | | ?????????????????????????????????????????????????? | | ?????????????????????????????????????????????????? | | ???????????????????????????????###########???????? | | ???????????????????????????????# % #???????? | | ???????????????????????????????# " % %% #??????#" | | ????????/??????????????????????# "" #??????#" | | ??????????????????????????????## "" ! ###+#??# | | ????????????????????#?????????# """ + #??# | | ????????????????????# ????????## """ # #??# | | ????????????????????# ?????????# [# #??# | | ????????????????????# ????????# ! # #??# | | ????????????????????# ????????######+#### ##### | | ????????????????????# u?????????# ^ | | ???????????????????##u u#??#?????# ^^ | | ???????????????????# khh## ????## ^ | | ??????????????""" #mkuhhx########% | | ?????????????"" + iRh@xuku* k ^ | | ??????????? # kRp###########+#######+##### | | ???????????????????# x###??# !! # ? | | ???????????????????###+#??????# ! #""" | | ???????????????????? ???????# !! #""" | | ???????????????????#"S????????# #""" | | ???????????????????#"?????????# # | | ???????????????????#??????????# #""" | | ??????????????????????????????# #""" | | ??????????????????????????????# #""" | | ??????????????????????????????# #? | | ??????????????????????????????# #?##### | | ??????????????????????????????# #?????? | | ??????????????????????????????# #?????? | | ??????????????????????????????#################### | | ?????????????????????????????????????????# | | ?????????????????????????????????????????# """ "" | | ?????????????????????????????????????????# """ "" | | ?????????????????????????????????????????# """ "" | | ?????????????????????????????????????????# | | ?????????????????????????????????????????# """ "" | | ?????????????????????????????????????????# """ "" | | ?????????????????????????????????????????# """ "" | | ?????????????????????????????????????????# | | ?????????????????????????????????????????# | +----------------------------------------------------+ Best States ------------- Heat Dissipation 61 Energy Generation 18 Energy Capacity 310 Matter Stores 300 Matter Capacity 300 Sight Range 18 Terrain Scan Density 10 Armor Coverage 1425 Resistance: KI 30 Power Shielding 33 Propulsion Shielding 66 Evasion (%) 55 Targeting Accuracy 8 Melee Accuracy 20 Armor Integrity Analysis 30 Recoil Reduction 4 Authchip Count 6 Item Schematics ----------------- Hcp. Storage Unit | -10/Materials | Hacked Huge Storage Unit | -10/Materials | Hacked Arm. Wheel | -8/Materials | Scanalyzed Hrd. Heavy Armor Plating | -8/Materials | Scanalyzed Titanium Leg | -8/Materials | Scanalyzed Hrd. Medium Armor Plating | -8/Materials | Scanalyzed Imp. Propulsion Shielding | -8/Materials | Scanalyzed Lgt. Armored Exoskeleton | -7/Factory | Hacked Kinecellerator | -7/Zion | Archive Tactical Coordination Suite | -7/Zion | Archive Microactuators | -7/Zion | Archive Enh. Optical Array | -7/Zion | Archive Hvy. Rocket Launcher | -7/Zion | Archive Arc Thrower | -7/Zion | Archive Energy Filter | -7/Zion | Archive Hvy. Treads | -7/Zion | Archive Hyp. Gauss Cannon | -7/Zion | Archive Mak. Hammer | -7/Zion | Archive Coil Gun | -7/Zion | Archive Flexi-carbon Leg | -7/Zion | Archive Thermic Laser | -7/Zion | Archive Coolant Injector | -7/Zion | Archive Imp. KE Penetrator | -7/Zion | Archive Robot Schematics ------------------ K-01 Serf | -7/Zion | Archive B-48 Gladiator | -7/Zion | Archive S-27 Virus | -7/Zion | Archive Fabricated ------------ Lgt. Armored Exoskeleton | x1 | -7/Factory Lgt. Armored Exoskeleton | x1 | -7/Factory Alien Tech Used ----------------- None Achievements -------------- None Challenges ------------ None Game ------ Seed HugeWeightSabre Manual? 0 Play Time 01:53:11 Cumulative 76.9 hours Start 2024.04.10 @ 15:11:39 End 2024.04.10 @ 17:04:28 Sessions 1 Manual Loads 0 Difficulty Rogue Special Mode None Game No. 69 Rogue 69 Adventurer 0 Explorer 0 Win Type - Total 1 Types 1/0/0/0/0/0/0/0/0 Lore% 40 Gallery% 54 Achievement% 46 Wizard Run 0 Options --------- Layout 2 ASCII 0 Keyboard 0 Movement Mouse Keybinds 0 Fullscreen 2 Font 32/SmallcapsGlow Map View 50x44 Zoom Use 0% Tactical HUD 1 Map Filters NONE Filters NONE Steam 1 RUN: b54f05c7-f103-41b7-b4e6-4bfe9da44a60